fUST/lending_fUST_20250806
["ID","MTS","AMOUNT","RATE_DAILY","PERIOD"]
[377462928,1754416319539,-500.0,0.00049315,10]
[377462929,1754416319549,-200.0,0.00049334,120]
[377462930,1754416319558,-201.66,0.00049369,47]
[377462931,1754416319570,-1578.04285645,0.00049495,30]
[377462932,1754416319580,-1000.0,0.000495,120]
[377462933,1754416319590,-200.0,0.00049504,120]
[377462934,1754416319599,-200.0,0.00049541,120]
[377462935,1754416319609,-4952.95,0.00049589,120]
[377462936,1754416319619,-151.0,0.000496,120]
[377462937,1754416319628,-1864.50528113,0.00049632,30]
[377462938,1754416319638,-426.7,0.00049763,120]
[377462939,1754416319648,-500.0,0.00049802,5]
[377462940,1754416319659,-4952.95,0.00049863,120]
[377462941,1754416319668,-999.97,0.00049863,120]
[377462942,1754416319677,-11266.7819165,0.0004989,120]
[377462943,1754416319809,-1000.0,0.00049999,120]
[377462944,1754416319820,-1500.0,0.0005,120]
[377462945,1754416319830,-250000.0,0.0005,120]
[377462946,1754416319842,-277.81115328,0.0005,30]
[377462947,1754416319853,-1000.0,0.0005,120]
[377462948,1754416319863,-400.0,0.0005,120]
[377462949,1754416319873,-1368.57986305,0.0005,120]
[377462950,1754416319884,-1637.72958766,0.0005,120]
[377462951,1754416319893,-201.66,0.00050054,48]
[377462952,1754416319903,-200.0,0.00050082,90]
[377462953,1754416319914,-200.0,0.00050082,90]
[377462954,1754416319925,-200.0,0.00050082,90]
[377462955,1754416319937,-200.0,0.00050082,90]
[377462956,1754416319948,-200.0,0.00050082,90]
[377462957,1754416319959,-200.0,0.00050082,90]
[377462958,1754416319970,-200.0,0.00050082,90]
[377462959,1754416319980,-200.0,0.00050082,90]
[377462960,1754416319991,-200.0,0.00050082,90]
[377462961,1754416320001,-200.0,0.00050082,90]
[377462962,1754416320011,-200.0,0.00050082,90]
[377462963,1754416320022,-200.0,0.00050082,90]
[377462964,1754416320032,-200.0,0.00050082,90]
[377462965,1754416320042,-200.0,0.00050082,90]
[377462966,1754416320051,-200.0,0.00050082,90]
[377462967,1754416320061,-200.0,0.00050082,90]
[377462968,1754416320071,-200.0,0.00050082,90]
[377462969,1754416320080,-364.0,0.00050082,90]
[377462970,1754416320090,-4952.95,0.00050136,120]
[377462971,1754416320099,-4747.5,0.00050136,120]
[377462972,1754416320109,-300.0,0.00050137,60]
[377462973,1754416320119,-250.0,0.00050137,60]
[377462974,1754416320129,-151.0,0.00050137,60]
[377462975,1754416320140,-2030.296672,0.00050137,60]
[377462976,1754416320149,-300.0,0.00050137,60]
[377462977,1754416320158,-300.0,0.00050137,60]
[377462978,1754416320168,-151.0,0.00050137,60]
[377462979,1754416320178,-500.0,0.00050137,60]
[377462980,1754416320188,-151.0,0.00050137,60]
[377462981,1754416320197,-19187.29552238,0.00050137,60]
[377462982,1754416320207,-5000.0,0.000502,120]
[377462983,1754416320220,-2301.40475005,0.00050286,56]
[377462984,1754416320230,-300.0,0.0005029,90]
[377462985,1754416320240,-250.0,0.0005029,90]
[377462986,1754416320250,-151.0,0.0005029,90]
[377462987,1754416320259,-300.0,0.0005029,90]
[377462988,1754416320268,-300.0,0.0005029,90]
[377462989,1754416320278,-151.0,0.0005029,90]
[377462990,1754416320287,-500.0,0.0005029,90]
[377462991,1754416320297,-151.0,0.0005029,90]
[377462992,1754416320307,-18502.69577858,0.0005029,90]
[377462993,1754416320316,-426.7,0.00050384,120]
[377462994,1754416320326,-4952.95,0.0005041,120]
[377462995,1754416320335,-10706.0,0.000505,120]
[377462996,1754416320345,-1000.0,0.000505,120]
[377462997,1754416320355,-206.0,0.0005055,30]
[377462998,1754416320367,-500.0,0.00050664,30]
[377462999,1754416320378,-4952.95,0.00050684,120]
[377463000,1754416320388,-200.0,0.00050703,120]
[377463001,1754416320397,-201.66,0.00050739,49]
[377463002,1754416320409,-151.0,0.000508,120]
[377463003,1754416320419,-408.0,0.00050901,120]
[377463004,1754416320430,-971.0,0.00050901,120]
[377463005,1754416320440,-2148.0,0.00050901,120]
[377463006,1754416320450,-636.0,0.00050901,120]
[377463007,1754416320460,-300.0,0.00050933,58]
[377463008,1754416320470,-250.0,0.00050933,58]
[377463009,1754416320480,-151.0,0.00050933,58]
[377463010,1754416320490,-300.0,0.00050933,58]
[377463011,1754416320499,-1957.856,0.00050933,58]
[377463012,1754416320509,-300.0,0.00050933,58]
[377463013,1754416320519,-151.0,0.00050933,58]
[377463014,1754416320529,-500.0,0.00050933,58]
[377463015,1754416320540,-151.0,0.00050933,58]
[377463016,1754416320551,-17842.522448,0.00050933,58]
[377463017,1754416320560,-4952.95,0.00050958,120]
[377463018,1754416320570,-4747.5,0.00050958,120]
[377463019,1754416320581,-500.0,0.00050985,60]
[377463020,1754416320590,-500.0,0.00050985,60]
[377463021,1754416320600,-502.74861018,0.00050985,60]
[377463022,1754416320611,-1000.0,0.00050999,120]
[377463023,1754416320620,-150.0,0.00051,2]
[377463024,1754416320630,-1000.0,0.00051,120]
[377463025,1754416320639,-150.0,0.00051,120]
[377463026,1754416320649,-426.7,0.00051004,120]
[377463027,1754416320659,-200.0,0.00051013,120]
[377463028,1754416320670,-300.0,0.00051059,85]
[377463029,1754416320680,-250.0,0.00051059,85]
[377463030,1754416320689,-151.0,0.00051059,85]
[377463031,1754416320698,-300.0,0.00051059,85]
[377463032,1754416320708,-300.0,0.00051059,85]
[377463033,1754416320717,-151.0,0.00051059,85]
[377463034,1754416320727,-500.0,0.00051059,85]
[377463035,1754416320736,-151.0,0.00051059,85]
[377463036,1754416320746,-151.0,0.00051059,85]
[377463037,1754416320758,-17205.904,0.00051059,85]
[377463038,1754416320767,-408900.51,0.0005111,30]
[377463039,1754416320776,-5000.0,0.000512,120]
[377463040,1754416320785,-4952.95,0.00051232,120]
[377463041,1754416320795,-500.0,0.00051285,60]
[377463042,1754416320806,-201.66,0.00051424,50]
[377463043,1754416320815,-660.77010131,0.00051429,2]
[377463044,1754416320824,-200.0,0.0005145,120]
[377463045,1754416320834,-1000.0,0.000515,120]
[377463046,1754416320843,-4952.95,0.00051506,120]
[377463047,1754416320852,-2301.40475005,0.00051593,59]
[377463048,1754416320862,-200.0,0.0005167,120]
[377463049,1754416320871,-4952.95,0.0005178,120]
[377463050,1754416320881,-4747.67887096,0.0005178,120]
[377463051,1754416320891,-3593.69234328,0.00051829,120]
[377463052,1754416320901,-200.0,0.0005186,120]
[377463053,1754416320911,-151.0,0.000519,120]
[377463054,1754416320922,-206.0,0.0005194,30]
[377463055,1754416320932,-1000.0,0.00051999,120]
[377463056,1754416320942,-1500.0,0.00052,120]
[377463057,1754416320953,-250000.0,0.00052,120]
[377463058,1754416320963,-4404.37799333,0.00052,30]
[377463059,1754416320973,-18964.0,0.00052,120]
[377463060,1754416320982,-1000.0,0.00052,120]
[377463061,1754416320991,-150.0,0.00052,120]
[377463062,1754416321002,-150.0,0.00052,120]
[377463063,1754416321012,-507.50130603,0.00052,60]
[377463064,1754416321022,-1321.15,0.00052,120]
[377463065,1754416321032,-200.0,0.00052052,120]
[377463066,1754416321042,-4952.95,0.00052054,120]
[377463067,1754416321052,-200.0,0.00052067,120]
[377463068,1754416321061,-201.66,0.00052109,51]
[377463069,1754416321072,-200.0,0.00052187,120]
[377463070,1754416321083,-5000.0,0.000522,120]
[377463071,1754416321093,-224635.16791503,0.00052263,120]
[377463072,1754416321105,-20878.63946684,0.00052263,120]
[377463073,1754416321115,-4952.95,0.00052328,120]
[377463074,1754416321126,-200.0,0.00052378,120]
[377463075,1754416321136,-51613.93331788,0.00052499,120]
[377463076,1754416321146,-1000.0,0.000525,2]
[377463077,1754416321155,-1000.0,0.000525,120]
[377463078,1754416321164,-4952.95,0.00052602,120]
[377463079,1754416321173,-405.653897,0.00052632,2]
[377463080,1754416321184,-200.0,0.00052678,120]
[377463081,1754416321193,-201.66,0.00052794,52]
[377463082,1754416321204,-4953.10606437,0.00052876,120]
[377463083,1754416321213,-2301.40475005,0.000529,62]
[377463084,1754416321223,-1000.0,0.00052999,120]
[377463085,1754416321232,-1000.0,0.00053,120]
[377463086,1754416321242,-1000.0,0.00053,120]
[377463087,1754416321251,-150.0,0.00053,120]
[377463088,1754416321261,-1751.60262646,0.00053,120]
[377463089,1754416321270,-151.0,0.000531,120]
[377463090,1754416321281,-5000.0,0.000532,120]
[377463091,1754416321291,-300.0,0.00053299,120]
[377463092,1754416321304,-250.0,0.00053299,120]
[377463093,1754416321315,-151.0,0.00053299,120]
[377463094,1754416321326,-151.0,0.00053299,120]
[377463095,1754416321338,-300.0,0.00053299,120]
[377463096,1754416321347,-300.0,0.00053299,120]
[377463097,1754416321366,-151.0,0.00053299,120]
[377463098,1754416321377,-500.0,0.00053299,120]
[377463099,1754416321390,-151.0,0.00053299,120]
[377463100,1754416321400,-151.0,0.00053299,120]
[377463101,1754416321410,-16592.0,0.00053299,120]
[377463102,1754416321420,-2917.51740368,0.000533,120]
[377463103,1754416321430,-2000.0,0.000533,120]
[377463104,1754416321440,-206.0,0.0005332,30]
[377463105,1754416321450,-300.0,0.00053329,30]
[377463106,1754416321459,-250.0,0.00053329,30]
[377463107,1754416321469,-151.0,0.00053329,30]
[377463108,1754416321478,-151.0,0.00053329,30]
[377463109,1754416321487,-300.0,0.00053329,30]
[377463110,1754416321496,-300.0,0.00053329,30]
[377463111,1754416321506,-1888.0,0.00053329,30]
[377463112,1754416321515,-151.0,0.00053329,30]
[377463113,1754416321524,-500.0,0.00053329,30]
[377463114,1754416321533,-151.0,0.00053329,30]
[377463115,1754416321543,-151.0,0.00053329,30]
[377463116,1754416321554,-16000.0,0.00053329,30]
[377463117,1754416321564,-4857143.24861214,0.0005333,30]
[377463118,1754416321576,-500.0,0.0005333,30]
[377463119,1754416321585,-500.0,0.0005333,30]
[377463120,1754416321594,-593.24961039,0.0005333,30]
[377463121,1754416321604,-500.0,0.0005333,30]
[377463122,1754416321613,-500.0,0.0005333,30]
[377463123,1754416321623,-519.49748189,0.0005333,30]
[377463124,1754416321634,-500.0,0.0005333,30]
[377463125,1754416321643,-500.0,0.0005333,30]
[377463126,1754416321653,-500.0,0.00053425,120]
[377463127,1754416321664,-185.613,0.0005347,99]
[377463128,1754416321674,-201.66384188,0.00053479,53]
[377463129,1754416321684,-1000.0,0.000535,120]
[377463130,1754416321694,-500.0,0.00053699,120]
[377463131,1754416321704,-408.0,0.00053901,120]
[377463132,1754416321714,-727.355,0.00053901,120]
[377463133,1754416321724,-2148.0,0.00053901,120]
[377463134,1754416321735,-389.846,0.00053901,120]
[377463135,1754416321744,-500.0,0.00053973,120]
[377463136,1754416321756,-1000.0,0.00053999,120]
[377463137,1754416321766,-1000.0,0.00054,120]
[377463138,1754416321777,-400.0,0.00054,120]
[377463139,1754416321786,-680.16356229,0.00054,120]
[377463140,1754416321795,-150.0,0.00054,120]
[377463141,1754416321805,-200.0,0.00054084,120]
[377463142,1754416321814,-151.0,0.000542,120]
[377463143,1754416321825,-500.0,0.00054247,120]
[377463144,1754416321834,-1000.0,0.00054328,120]
[377463145,1754416321847,-200.0,0.00054345,120]
[377463146,1754416321863,-1591245.42811063,0.0005444,30]
[377463147,1754416321873,-1000.0,0.000545,120]
[377463148,1754416321883,-197.4305716,0.00054794,120]
[377463149,1754416321892,-500.0,0.00054795,10]
[377463150,1754416321902,-200.0,0.00054897,90]
[377463151,1754416321912,-200.0,0.00054897,90]
[377463152,1754416321922,-200.0,0.00054897,90]
[377463153,1754416321933,-200.0,0.00054897,90]
[377463154,1754416321943,-200.0,0.00054897,90]
[377463155,1754416321953,-200.0,0.00054897,90]
[377463156,1754416321963,-200.0,0.00054897,90]
[377463157,1754416321975,-200.0,0.00054897,90]
[377463158,1754416321986,-200.0,0.00054897,90]
[377463159,1754416321998,-200.0,0.00054897,90]
[377463160,1754416322009,-200.0,0.00054897,90]
[377463161,1754416322018,-200.0,0.00054897,90]
[377463162,1754416322028,-200.0,0.00054897,90]
[377463163,1754416322038,-200.0,0.00054897,90]
[377463164,1754416322048,-200.0,0.00054897,90]
[377463165,1754416322058,-200.0,0.00054897,90]
[377463166,1754416322067,-200.0,0.00054897,90]
[377463167,1754416322078,-200.0,0.00054897,90]
[377463168,1754416322088,-200.0,0.00054897,90]
[377463169,1754416322097,-200.0,0.00054897,90]
[377463170,1754416322111,-200.0,0.00054897,90]
[377463171,1754416322121,-200.0,0.00054897,90]
[377463172,1754416322131,-200.0,0.00054897,90]
[377463173,1754416322140,-200.0,0.00054897,90]
[377463174,1754416322149,-200.0,0.00054897,90]
[377463175,1754416322160,-1500.0,0.000549,120]
[377463176,1754416322172,-545.98561708,0.00055,120]
[377463177,1754416322181,-999.82487713,0.00055,120]
[377463178,1754416322192,-1000.0,0.00055,120]
[377463179,1754416322202,-1179.68724735,0.00055,120]
[377463180,1754416322212,-150.0,0.00055,120]
[377463181,1754416322226,-250.0,0.0005507,3]
[377463182,1754416322236,-200.0,0.0005512,120]
[377463183,1754416322244,-200.0,0.0005512,120]
[377463184,1754416322282,-151.0,0.000554,120]
[377463185,1754416322292,-2025.0,0.0005555,120]
[377463186,1754416322302,-5000.0,0.000559,120]
[377463187,1754416322311,-500.0,0.00055997,120]
[377463188,1754416322320,-200.0,0.00055997,120]
[377463189,1754416322330,-200.0,0.00055997,120]
[377463190,1754416322340,-1000.0,0.00056,120]
[377463191,1754416322350,-151.0,0.000565,120]
[377463192,1754416322363,-408.0,0.00056901,120]
[377463193,1754416322372,-2148.0,0.00056901,120]
[377463194,1754416322381,-1892.15377063,0.00057,120]
[377463195,1754416322391,-4244.27,0.00057,7]
[377463196,1754416322401,-1653.99,0.00057,14]
[377463197,1754416322410,-342939.6030319,0.0005733,30]
[377463198,1754416322461,-500.0,0.00027563,2]
[377463199,1754416322471,-292.9155566,0.00036595,30]
[377463200,1754416322480,-11318.0844424,0.0005733,30]
[377463201,1754416330428,500.0,0.00026246,2]
[377463202,1754416330459,500.0,0.00026246,2]
[377463203,1754416330493,500.0,0.00026246,2]
[377463204,1754416330522,500.0,0.00026246,2]
[377463205,1754416330553,500.0,0.00026246,2]
[377463206,1754416330582,337.71641707,0.00026246,2]
[377463207,1754416330606,298.93968436,0.00026246,2]
[377463208,1754416330634,500.0,0.00026246,2]
[377463209,1754416330665,500.0,0.00026246,2]
[377463210,1754416330693,500.0,0.00026246,2]
[377463211,1754416330723,500.0,0.00026246,2]
[377463212,1754416330754,500.0,0.00026246,2]
[377463213,1754416330782,500.0,0.00026246,2]
[377463214,1754416330814,500.0,0.00026246,2]
[377463215,1754416330844,500.0,0.00026246,2]
[377463216,1754416330871,500.0,0.00026246,2]
[377463217,1754416330903,201.06031564,0.00026246,2]
[377463218,1754416330928,298.93968436,0.00026246,2]
[377463219,1754416330955,500.0,0.00026246,2]
[377463220,1754416331004,500.0,0.00026246,2]
[377463221,1754416331030,500.0,0.00026246,2]
[377463222,1754416331058,500.0,0.00026246,2]
[377463223,1754416331087,500.0,0.00026246,2]
[377463224,1754416331114,500.0,0.00026246,2]
[377463225,1754416331144,228.45119638,0.00026246,2]
[377463226,1754416331174,500.0,0.00026246,2]
[377463227,1754416331204,500.0,0.00026246,2]
[377463228,1754416331233,472.60911926,0.00026246,2]
[377463229,1754416331257,27.39088074,0.00026246,2]
[377463230,1754416331288,500.0,0.00026246,2]
[377463231,1754416331319,500.0,0.00026246,2]
[377463232,1754416331352,500.0,0.00026246,2]
[377463233,1754416331383,500.0,0.00026246,2]
[377463234,1754416331414,500.0,0.00026246,2]
[377463235,1754416331443,500.0,0.00026246,2]
[377463236,1754416331475,500.0,0.00026246,2]
[377463237,1754416331506,500.0,0.00026246,2]
[377463238,1754416331537,500.0,0.00026246,2]
[377463239,1754416331568,472.60911926,0.00026246,2]
[377463240,1754416331595,27.39088074,0.00026246,2]
[377463241,1754416331625,500.0,0.00026246,2]
[377463242,1754416331654,500.0,0.00026246,2]
[377463243,1754416331681,500.0,0.00026246,2]
[377463244,1754416331709,500.0,0.00026246,2]
[377463245,1754416331751,500.0,0.00026246,2]
[377463246,1754416331777,500.0,0.00026246,2]
[377463247,1754416331823,500.0,0.00026246,2]
[377463248,1754416331852,500.0,0.00026246,2]
[377463249,1754416331923,500.0,0.00026246,2]
[377463250,1754416331972,472.60911926,0.00026246,2]
[377463251,1754416331993,27.39088074,0.00026246,2]
[377463252,1754416332019,500.0,0.00026246,2]
[377463253,1754416332044,500.0,0.00026246,2]
[377463254,1754416332068,332.84826978,0.00026246,2]
[377463255,1754416332097,500.0,0.00026246,2]
[377463256,1754416332126,500.0,0.00026246,2]
[377463257,1754416332154,613.04476859,0.00026246,2]
[377463258,1754416332197,500.0,0.00026246,2]
[377463259,1754416332227,500.0,0.00026246,2]
[377463260,1754416332317,500.0,0.00026246,2]
[377463261,1754416332345,500.0,0.00026246,2]
[377463262,1754416332381,26.71608089,0.00026246,2]
[377463263,1754416332404,473.28391911,0.00026246,2]
[377463264,1754416333420,539.912232,0.00013699,2]
[377463265,1754416333498,539.912232,0.00020187,2]
[377463266,1754416333540,500.0,0.00026246,2]
[377463267,1754416333567,500.0,0.00026246,2]
[377463268,1754416333695,250.0,0.00026246,2]
[377463269,1754416333796,433.69734148,0.00026246,2]
[377463270,1754416334361,281.0408542,0.00026246,2]
[377463271,1754416334474,202.86075907,0.00026147,2]
[377463272,1754416335299,1279.29266214,0.00026247,2]
[377463273,1754416335322,176.57733786,0.00026247,2]
[377463274,1754416335480,500.0,0.00026246,2]
[377463275,1754416336204,1200.0,0.00026245,2]
[377463276,1754416336243,214.56,0.00022349,2]
[377463277,1754416336563,2908.86266214,0.00025161,2]
[377463278,1754416336586,5000.0,0.00025161,2]
[377463279,1754416336609,5000.0,0.00025161,2]
[377463280,1754416336630,5000.0,0.00025161,2]
[377463281,1754416336655,5000.0,0.00025161,2]
[377463282,1754416336677,5000.0,0.00025161,2]
[377463283,1754416336713,147.73287576,0.00025161,2]
[377463284,1754416337051,500.0,0.00026246,2]
[377463285,1754416337083,500.0,0.00026246,2]
[377463286,1754416337124,500.0,0.00026246,2]
[377463287,1754416337292,3352.26712424,0.00026147,2]
[377463288,1754416337313,5000.0,0.00026147,2]
[377463289,1754416337336,5000.0,0.00026147,2]
[377463290,1754416337360,5000.0,0.00026147,2]
[377463291,1754416337381,5000.0,0.00026147,2]
[377463292,1754416337404,5000.0,0.00026147,2]
[377463293,1754416337425,5000.0,0.00026147,2]
[377463294,1754416337450,5000.0,0.00026147,2]
[377463295,1754416337472,5000.0,0.00026147,2]
[377463296,1754416337493,5000.0,0.00026147,2]
[377463297,1754416337515,5000.0,0.00026147,2]
[377463298,1754416337536,5000.0,0.00026147,2]
[377463299,1754416337558,5000.0,0.00026147,2]
[377463300,1754416337582,5000.0,0.00026147,2]
[377463301,1754416337604,5000.0,0.00026147,2]
[377463302,1754416337625,5000.0,0.00026147,2]
[377463303,1754416337646,5000.0,0.00026147,2]
[377463304,1754416337765,5000.0,0.00026147,2]
[377463305,1754416337788,5000.0,0.00026147,2]
[377463306,1754416337810,5000.0,0.00026147,2]
[377463307,1754416337830,5000.0,0.00026147,2]
[377463308,1754416337851,5000.0,0.00026147,2]
[377463309,1754416339206,160.0,0.00020187,2]
[377463310,1754416342716,215.85310535,0.00025205,30]
[377463311,1754416373664,-586.48,0.00026137,3]
[377463312,1754416373694,-187.33,0.00026137,10]
[377463314,1754416404473,-806.57,0.00026137,10]
[377463316,1754416406152,-4838.33295608,0.00026137,2]
[377463317,1754416406316,-5000.0,0.00026137,2]
[377463318,1754416421282,-354.88,0.00026128,10]
[377463319,1754416421323,-4290.24,0.00026137,2]
[377463320,1754416421475,-5000.0,0.00026137,2]
[377463321,1754416421664,-5000.0,0.00026137,2]
[377463322,1754416421835,-5000.0,0.00026137,2]
[377463323,1754416422037,-5000.0,0.00026137,2]
[377463324,1754416422222,-5000.0,0.00026137,2]
[377463325,1754416422363,-5000.0,0.00026137,2]
[377463326,1754416422571,-5000.0,0.00026137,2]
[377463327,1754416422787,-5000.0,0.00026137,2]
[377463328,1754416423104,-5000.0,0.00026137,2]
[377463329,1754416423331,-5000.0,0.00026137,2]
[377463330,1754416423595,-5000.0,0.00026137,2]
[377463331,1754416423914,-5000.0,0.00026137,2]
[377463332,1754416423996,-5000.0,0.00026137,2]
[377463333,1754416424199,-5000.0,0.00026137,2]
[377463334,1754416424361,-5000.0,0.00026137,2]
[377463335,1754416424526,-5000.0,0.00026137,2]
[377463336,1754416424719,-5000.0,0.00026137,2]
[377463337,1754416424840,-5000.0,0.00026137,2]
[377463338,1754416425139,-5000.0,0.00026137,2]
[377463339,1754416425271,-5000.0,0.00026137,2]
[377463340,1754416425450,-5000.0,0.00026137,2]
[377463341,1754416425614,-5000.0,0.00026137,2]
[377463342,1754416425747,-5000.0,0.00026137,2]
[377463343,1754416425882,-5000.0,0.00026137,2]
[377463344,1754416426013,-5000.0,0.00026137,2]
[377463345,1754416426191,-5000.0,0.00026137,2]
[377463346,1754416426383,-5000.0,0.00026137,2]
[377463347,1754416426536,-5000.0,0.00026137,2]
[377463348,1754416426787,-5000.0,0.00026137,2]
[377463349,1754416427058,-5000.0,0.00026137,2]
[377463350,1754416427271,-5000.0,0.00026137,2]
[377463351,1754416427453,-5000.0,0.00026137,2]
[377463352,1754416427609,-5000.0,0.00026137,2]
[377463353,1754416427780,-5000.0,0.00026137,2]
[377463354,1754416428047,-5000.0,0.00026137,2]
[377463355,1754416428274,-5000.0,0.00026137,2]
[377463356,1754416428489,-5000.0,0.00026137,2]
[377463357,1754416428664,-5000.0,0.00026137,2]
[377463359,1754416428809,-5000.0,0.00026137,2]
[377463362,1754416443826,-300.0,0.00026136,2]
[377463370,1754416452301,4400.0,0.00026137,2]
[377463371,1754416452326,600.0,0.00026137,2]
[377463373,1754416459962,4400.0,0.00026137,2]
[377463374,1754416459985,600.0,0.00026137,2]
[377463375,1754416463903,151.0,0.000262,18]
[377463376,1754416464344,151.0,0.000259,16]
[377463377,1754416464704,151.0,0.000255,14]
[377463380,1754416468103,4098.0,0.00026137,2]
[377463381,1754416468124,902.0,0.00026137,2]
[377463382,1754416474285,197.89342825,0.00026136,2]
[377463383,1754416474313,500.0,0.00026136,2]
[377463384,1754416474340,500.0,0.00026136,2]
[377463385,1754416474366,500.0,0.00026136,2]
[377463386,1754416474395,589.07103565,0.00026136,2]
[377463387,1754416474423,500.0,0.00026136,2]
[377463388,1754416474455,500.0,0.00026136,2]
[377463389,1754416474552,500.0,0.00026136,2]
[377463390,1754416474579,166.78915668,0.00026136,2]
[377463391,1754416474605,144.24637942,0.00026136,2]
[377463392,1754416474627,355.75362058,0.00026136,2]
[377463393,1754416474654,487.57933819,0.00026136,2]
[377463394,1754416474684,500.0,0.00026136,2]
[377463395,1754416474708,500.0,0.00026136,2]
[377463396,1754416474738,500.0,0.00026136,2]
[377463397,1754416474764,500.0,0.00026136,2]
[377463398,1754416474802,500.0,0.00026136,2]
[377463399,1754416474831,500.0,0.00026136,2]
[377463400,1754416474861,500.0,0.00026136,2]
[377463401,1754416474888,500.0,0.00026136,2]
[377463402,1754416474929,156.66704123,0.00026136,2]
[377463403,1754416474951,343.33295877,0.00026136,2]
[377463404,1754416475118,500.0,0.00026136,2]
[377463405,1754416475148,313.28786417,0.00026136,2]
[377463406,1754416475180,500.0,0.00026136,2]
[377463407,1754416475216,500.0,0.00026136,2]
[377463408,1754416475255,500.0,0.00026136,2]
[377463409,1754416475286,500.0,0.00026136,2]
[377463410,1754416475318,500.0,0.00026136,2]
[377463411,1754416475349,500.0,0.00026136,2]
[377463412,1754416475380,500.0,0.00026136,2]
[377463413,1754416475412,343.37917706,0.00026136,2]
[377463415,1754416485243,215.85310535,0.00025205,14]
[377463430,1754416507728,-4738.0,0.00025205,14]
[377463438,1754416530252,-46.14689465,0.00025205,14]
[377463439,1754416530281,-300.0,0.00026135,2]
[377463440,1754416530310,-156.62082294,0.00026136,2]
[377463441,1754416530339,-411.47749246,0.00026136,2]
[377463442,1754416530368,-500.0,0.00026136,2]
[377463443,1754416530398,-500.0,0.00026136,2]
[377463444,1754416530430,-500.0,0.00026136,2]
[377463445,1754416530586,-500.0,0.00026136,2]
[377463446,1754416530615,-500.0,0.00026136,2]
[377463447,1754416530645,-500.0,0.00026136,2]
[377463448,1754416530681,-500.0,0.00026136,2]
[377463449,1754416530714,-500.0,0.00026136,2]
[377463450,1754416530797,-500.0,0.00026136,2]
[377463451,1754416530836,-500.0,0.00026136,2]
[377463452,1754416530868,-500.0,0.00026136,2]
[377463453,1754416530898,-500.0,0.00026136,2]
[377463454,1754416530929,-500.0,0.00026136,2]
[377463455,1754416531070,-500.0,0.00026136,2]
[377463456,1754416531100,-500.0,0.00026136,2]
[377463457,1754416531130,-500.0,0.00026136,2]
[377463458,1754416531161,-500.0,0.00026136,2]
[377463459,1754416531190,-263.9190091,0.00026137,2]
[377463460,1754416531220,-219.3879818,0.00026137,12]
[377463461,1754416531366,-33.3860182,0.00026137,12]
[377463462,1754416531399,-179.40814277,0.00026137,12]
[377463464,1754416547308,227.21515364,0.00026136,2]
[377463465,1754416548356,150.0,0.00024016,2]